[Event "10th Cesme Open-A 2024"]
[Site "Cesme"]
[Date "2024.06.29"]
[Round "8"]
[White "Ince, Taylan Ruzgar"]
[Black "Anacak, Hasan Gunes"]
[Result "1/2-1/2"]
[ECO "B52"]
[WhiteElo "2243"]
[BlackElo "2095"]
[Annotator "RC"]
[PlyCount "55"]
[EventDate "2024.06.23"]
[EventType "swiss"]
[EventCountry "TUR"]
[SourceTitle "playchess.com"]
[Source "ChessBase"]
[SourceQuality "1"]
[TimeControl "5400+30"]

1. e4 {[%emt 0:01:00]} c5 {[%emt 0:01:00]} 2. Nf3 {[%emt 0:00:00]} d6 {[%emt 0:00:30]} 3. Bb5+ {[%emt 0:00:00]} Bd7 {[%emt 0:00:30]} 4. Bxd7+ {[%emt 0:00:30]} Nxd7 {[%emt 0:00:30]} 5. O-O {[%emt 0:00:30]} Ngf6 {[%emt 0:00:30]} 6. Qe2 {[%emt 0:00:00]} e6 {[%emt 0:00:30]} 7. b3 {[%emt 0:00:00]} Be7 {[%emt 0:00:30]} 8. Bb2 {[%emt 0:00:30]} O-O {[%emt 0:00:30]} 9. c4 {[%emt 0:00:30]} Qb6 {[%emt 0:00:00]} 10. Nc3 {[%emt 0:01:30]} Ne5 {[%emt 0:09:00]} 11. Rad1 {[%emt 0:03:30]} Qc6 {[%emt 0:20:30]} 12. Ne1 {[%emt 0:08:30]} Ng6 {[%emt 0:06:30]} 13. f4 {[%emt 0:02:30]} a6 {[%emt 0:01:30]} 14. a4 {[%emt 0:13:30]} Bd8 {[%emt 0:10:30]} 15. f5 {[%emt 0:24:30]} Ne5 {[%emt 0:00:30]} 16. Nd3 {[%emt 0:00:30]} Ba5 {[%emt 0:14:30]} 17. Nxe5 {[%emt 0:07:30]} dxe5 {[%emt 0:00:30]} 18. d3 {[%emt 0:00:30]} Qd6 {[%emt 0:02:30]} 19. Kh1 {[%emt 0:04:30]} Nd7 {[%emt 0:01:30]} 20. fxe6 {[%emt 0:03:30]} fxe6 {[%emt 0:00:30]} 21. Nb1 {[%emt 0:05:30]} Rxf1+ {[%emt 0:08:30]} 22. Rxf1 {[%emt 0:00:30]} Rf8 {[%emt 0:00:30]} 23. Rxf8+ {[%emt 0:00:30]} Qxf8 {[%emt 0:00:30]} 24. g3 {[%emt 0:00:30]} Qf6 {[%emt 0:00:30]} 25. Kg2 {[%emt 0:00:30]} Qg5 {[%emt 0:02:00]} 26. Nc3 {[%emt 0:04:03]} Nb8 {[%emt 0:02:40]} 27. h4 {[%emt 0:04:55]} Qh6 {[%emt 0:01:34]} 28. Nd1 {[%emt 0:02:49]} 1/2-1/2

[Event "10th Cesme Open-A 2024"]
[Site "Cesme"]
[Date "2024.06.29"]
[Round "8"]
[White "Caputcuoglu, Zeki Berke"]
[Black "Haznedaroglu, Kivanc"]
[Result "1-0"]
[ECO "D16"]
[WhiteElo "2239"]
[BlackElo "2359"]
[Annotator "RC"]
[PlyCount "61"]
[EventDate "2024.06.23"]
[EventType "swiss"]
[EventCountry "TUR"]
[SourceTitle "playchess.com"]
[Source "ChessBase"]
[SourceQuality "1"]
[TimeControl "5400+30"]

1. Nf3 {[%emt 0:02:00]} d5 {[%emt 0:01:00]} 2. d4 {[%emt 0:00:30]} Nf6 {[%emt 0:00:30]} 3. c4 {[%emt 0:00:30]} c6 {[%emt 0:00:00]} 4. Nc3 {[%emt 0:00:30]} dxc4 {[%emt 0:00:00]} 5. a4 {[%emt 0:00:30]} a5 {[%emt 0:00:00]} 6. e4 {[%emt 0:03:30]} Bg4 {[%emt 0:02:00]} 7. Bxc4 {[%emt 0:01:30]} e6 {[%emt 0:00:30]} 8. O-O {[%emt 0:04:30]} Be7 {[%emt 0:02:30]} 9. Be3 {[%emt 0:02:30]} Nbd7 {[%emt 0:01:30]} 10. h3 {[%emt 0:02:30]} Bh5 {[%emt 0:00:00]} 11. Be2 {[%emt 0:02:30]} O-O {[%emt 0:01:00]} 12. Nd2 {[%emt 0:01:30]} Bxe2 {[%emt 0:00:30]} 13. Qxe2 {[%emt 0:00:00]} Qb6 {[%emt 0:09:30]} 14. Nc4 {[%emt 0:06:00]} Qa6 {[%emt 0:00:00]} 15. Bf4 {[%emt 0:07:30]} Bb4 {[%emt 0:00:00]} 16. Rac1 {[%emt 0:02:30]} Rfe8 {[%emt 0:01:30]} 17. Rfe1 {[%emt 0:03:30]} Nb6 {[%emt 0:05:30]} 18. b3 {[%emt 0:15:30]} Rac8 {[%emt 0:11:30]} 19. Nd6 {[%emt 0:03:30]} Qxe2 {[%emt 0:00:30]} 20. Rxe2 {[%emt 0:00:30]} Bxd6 {[%emt 0:00:30]} 21. Bxd6 {[%emt 0:00:00]} Red8 {[%emt 0:00:00]} 22. e5 {[%emt 0:01:00]} Ne8 {[%emt 0:07:00]} 23. Ne4 {[%emt 0:01:30]} f5 {[%emt 0:06:30]} 24. Nc5 {[%emt 0:01:30]} Nxd6 {[%emt 0:00:30]} 25. exd6 {[%emt 0:00:30]} Rxd6 {[%emt 0:00:00]} 26. Nxb7 {[%emt 0:00:30]} Rxd4 {[%emt 0:00:00]} 27. Nxa5 {[%emt 0:00:30]} c5 {[%emt 0:00:30]} 28. Rxe6 {[%emt 0:01:30]} Nd5 {[%emt 0:00:30]} 29. Nc6 {[%emt 0:01:30]} Rd3 {[%emt 0:00:30]} 30. Rxc5 {[%emt 0:02:30]} Kf8 {[%emt 0:00:00]} 31. Rd6 {[%emt 0:01:30]} 1-0

[Event "10th Cesme Open-A 2024"]
[Site "Cesme"]
[Date "2024.06.29"]
[Round "8"]
[White "Ozcan, Kaan"]
[Black "Yildiz, Serdar Murat"]
[Result "1/2-1/2"]
[ECO "E28"]
[WhiteElo "2227"]
[BlackElo "2026"]
[Annotator "RC"]
[PlyCount "153"]
[EventDate "2024.06.23"]
[EventType "swiss"]
[EventCountry "TUR"]
[SourceTitle "playchess.com"]
[Source "ChessBase"]
[SourceQuality "1"]
[TimeControl "5400+30"]

1. d4 {[%emt 0:01:00]} Nf6 {[%emt 0:01:00]} 2. c4 {[%emt 0:00:30]} e6 {[%emt 0:00:30]} 3. Nc3 {[%emt 0:00:30]} Bb4 {[%emt 0:00:30]} 4. e3 {[%emt 0:00:00]} b6 {[%emt 0:00:00]} 5. Bd3 {[%emt 0:00:00]} Bb7 {[%emt 0:00:00]} 6. f3 {[%emt 0:00:30]} O-O {[%emt 0:09:30]} 7. Nge2 {[%emt 0:01:30]} c5 {[%emt 0:01:30]} 8. a3 {[%emt 0:00:30]} Bxc3+ {[%emt 0:00:30]} 9. bxc3 {[%emt 0:00:30]} Nc6 {[%emt 0:03:30]} 10. O-O {[%emt 0:02:30]} d6 {[%emt 0:05:30]} 11. e4 {[%emt 0:02:30]} Nd7 {[%emt 0:06:30]} 12. f4 {[%emt 0:04:30]} cxd4 {[%emt 0:07:30]} 13. cxd4 {[%emt 0:00:30]} e5 {[%emt 0:00:30]} 14. fxe5 {[%emt 0:02:30]} dxe5 {[%emt 0:00:30]} 15. d5 {[%emt 0:00:30]} Ne7 {[%emt 0:01:30]} 16. Ng3 {[%emt 0:01:30]} Nc5 {[%emt 0:02:30]} 17. Be2 {[%emt 0:00:00]} Ba6 {[%emt 0:02:30]} 18. Be3 {[%emt 0:01:00]} Qd6 {[%emt 0:02:30]} 19. Rc1 {[%emt 0:01:30]} Rac8 {[%emt 0:00:30]} 20. Bg5 {[%emt 0:04:30]} f6 {[%emt 0:00:30]} 21. Be3 {[%emt 0:00:30]} Rc7 {[%emt 0:03:30]} 22. Kh1 {[%emt 0:03:30]} g6 {[%emt 0:10:30]} 23. Bg4 {[%emt 0:01:30]} Bc8 {[%emt 0:04:30]} 24. Bxc8 {[%emt 0:00:30]} Rcxc8 {[%emt 0:03:30]} 25. Qg4 {[%emt 0:02:30]} Kh8 {[%emt 0:01:30]} 26. Bh6 {[%emt 0:04:30]} Rf7 {[%emt 0:01:30]} 27. Rc3 {[%emt 0:05:30]} f5 {[%emt 0:05:30]} 28. exf5 {[%emt 0:04:30]} gxf5 {[%emt 0:00:30]} 29. Qh5 {[%emt 0:00:30]} Qg6 {[%emt 0:01:30]} 30. Re3 {[%emt 0:07:30]} Nd7 {[%emt 0:05:30]} 31. d6 {[%emt 0:02:30]} Ng8 {[%emt 0:02:03]} 32. Qxg6 {[%emt 0:09:30]} hxg6 {[%emt 0:00:30]} 33. Bg5 {[%emt 0:00:30]} Rxc4 {[%emt 0:00:30]} 34. Rd3 {[%emt 0:01:30]} Ngf6 {[%emt 0:00:04]} 35. Kg1 {[%emt 0:00:30]} Kg7 {[%emt 0:02:16]} 36. h4 {[%emt 0:06:30]} f4 {[%emt 0:02:23]} 37. Ne2 {[%emt 0:00:30]} Nc5 {[%emt 0:01:58]} 38. Rdd1 {[%emt 0:05:30]} Rd7 {[%emt 0:00:30]} 39. g3 {[%emt 0:06:13]} Rc2 {[%emt 0:04:12]} 40. Nc1 {[%emt 0:00:52]} Ng4 {[%emt 0:03:27]} 41. gxf4 {[%emt 0:01:02]} Ne3 {[%emt 0:01:23]} 42. fxe5 {[%emt 0:00:30]} Nxd1 {[%emt 0:00:30]} 43. Rxd1 {[%emt 0:00:00]} Kf7 {[%emt 0:00:46]} 44. Nd3 {[%emt 0:03:49]} Nxd3 {[%emt 0:01:21]} 45. Rxd3 {[%emt 0:00:30]} Ke6 {[%emt 0:00:31]} 46. Bf6 {[%emt 0:00:30]} b5 {[%emt 0:01:57]} 47. Rg3 {[%emt 0:00:17]} a5 {[%emt 0:02:14]} 48. Rxg6 {[%emt 0:06:27]} b4 {[%emt 0:00:30]} 49. Be7+ {[%emt 0:00:56]} Kxe5 {[%emt 0:00:08]} 50. Rg5+ {[%emt 0:02:20]} Ke6 {[%emt 0:00:06]} 51. Rg3 {[%emt 0:02:40]} Rb7 {[%emt 0:00:58]} 52. axb4 {[%emt 0:00:30]} axb4 {[%emt 0:01:16]} 53. Rb3 {[%emt 0:00:04]} Ra7 {[%emt 0:00:06]} 54. Re3+ {[%emt 0:00:31]} Kd7 {[%emt 0:00:29]} 55. Bf6 {[%emt 0:00:23]} Kxd6 {[%emt 0:01:07]} 56. h5 {[%emt 0:02:17]} Rh7 {[%emt 0:01:03]} 57. h6 {[%emt 0:00:36]} Kd5 {[%emt 0:00:36]} 58. Bg7 {[%emt 0:00:27]} Rc7 {[%emt 0:00:25]} 59. Rd3+ {[%emt 0:01:39]} Kc4 {[%emt 0:00:18]} 60. Rd4+ {[%emt 0:00:11]} Kb3 {[%emt 0:00:39]} 61. Rg4 {[%emt 0:00:13]} Rf7 {[%emt 0:00:31]} 62. Rg3+ {[%emt 0:00:39]} Ka2 {[%emt 0:00:39]} 63. Rg2+ {[%emt 0:00:05]} Ka3 {[%emt 0:00:00]} 64. Rg3+ {[%emt 0:00:30]} b3 {[%emt 0:00:00]} 65. Rg6 {[%emt 0:01:34]} Ra7 {[%emt 0:00:30]} 66. Bd4 {[%emt 0:01:03]} Ra5 {[%emt 0:01:21]} 67. Bc3 {[%emt 0:00:30]} Ra4 {[%emt 0:00:30]} 68. Rb6 {[%emt 0:00:30]} Rc7 {[%emt 0:00:30]} 69. Be5 {[%emt 0:00:30]} Rh7 {[%emt 0:00:30]} 70. Bc3 {[%emt 0:00:30]} Ka2 {[%emt 0:00:30]} 71. Kg2 {[%emt 0:00:30]} Rc4 {[%emt 0:00:12]} 72. Be5 {[%emt 0:01:27]} Rc2+ {[%emt 0:00:22]} 73. Kg3 {[%emt 0:00:29]} b2 {[%emt 0:00:29]} 74. Ra6+ {[%emt 0:00:17]} Kb1 {[%emt 0:00:48]} 75. Rb6 {[%emt 0:00:04]} Ra7 {[%emt 0:00:44]} 76. Kg4 {[%emt 0:00:51]} Ka2 {[%emt 0:00:32]} 77. Rxb2+ {[%emt 0:00:32]} 1/2-1/2

[Event "10th Cesme Open-A 2024"]
[Site "Cesme"]
[Date "2024.06.29"]
[Round "8"]
[White "Jafarli, Babak"]
[Black "Aliyev, Elnur"]
[Result "1-0"]
[ECO "A01"]
[WhiteElo "2192"]
[BlackElo "2073"]
[Annotator "RC"]
[PlyCount "100"]
[EventDate "2024.06.23"]
[EventType "swiss"]
[EventCountry "TUR"]
[SourceTitle "playchess.com"]
[Source "ChessBase"]
[SourceQuality "1"]
[TimeControl "5400+30"]

1. b3 {[%emt 0:01:00]} d5 {[%emt 0:05:00]} 2. Bb2 {[%emt 0:00:00]} Nc6 {[%emt 0:00:30]} 3. e3 {[%emt 0:00:00]} Nf6 {[%emt 0:04:30]} 4. f4 {[%emt 0:00:30]} Bg4 {[%emt 0:00:30]} 5. Nf3 {[%emt 0:00:30]} a6 {[%emt 0:03:30]} 6. Be2 {[%emt 0:02:30]} e6 {[%emt 0:01:30]} 7. Ne5 {[%emt 0:05:30]} Bxe2 {[%emt 0:00:30]} 8. Qxe2 {[%emt 0:00:30]} Nd7 {[%emt 0:00:30]} 9. O-O {[%emt 0:00:30]} Be7 {[%emt 0:00:30]} 10. e4 {[%emt 0:07:30]} Ncxe5 {[%emt 0:14:30]} 11. fxe5 {[%emt 0:00:30]} c6 {[%emt 0:00:30]} 12. d4 {[%emt 0:00:30]} O-O {[%emt 0:00:30]} 13. Nd2 {[%emt 0:03:30]} a5 {[%emt 0:09:30]} 14. a4 {[%emt 0:00:30]} Qc7 {[%emt 0:01:30]} 15. exd5 {[%emt 0:04:30]} cxd5 {[%emt 0:00:30]} 16. c4 {[%emt 0:00:30]} Bb4 {[%emt 0:00:30]} 17. Nf3 {[%emt 0:00:30]} dxc4 {[%emt 0:00:30]} 18. bxc4 {[%emt 0:00:30]} Rac8 {[%emt 0:05:30]} 19. Rac1 {[%emt 0:07:30]} Nb6 {[%emt 0:00:30]} 20. c5 {[%emt 0:00:30]} Nxa4 {[%emt 0:00:30]} 21. Qc2 {[%emt 0:00:30]} Qd7 {[%emt 0:00:30]} 22. Ng5 {[%emt 0:00:30]} f5 {[%emt 0:00:30]} 23. exf6 {[%emt 0:00:30]} gxf6 {[%emt 0:00:30]} 24. Nxh7 {[%emt 0:00:30]} Qxh7 {[%emt 0:00:30]} 25. Qxa4 {[%emt 0:00:30]} Rc7 {[%emt 0:00:30]} 26. Qb3 {[%emt 0:00:30]} Qe4 {[%emt 0:00:30]} 27. Rf3 {[%emt 0:00:30]} Rg7 {[%emt 0:00:30]} 28. Rcf1 {[%emt 0:00:30]} Rff7 {[%emt 0:00:30]} 29. g3 {[%emt 0:00:30]} f5 {[%emt 0:00:30]} 30. Rf4 {[%emt 0:24:30]} Qc6 {[%emt 0:37:26]} 31. d5 {[%emt 0:03:30]} Qxc5+ {[%emt 0:04:12]} 32. Bd4 {[%emt 0:00:30]} Qxd5 {[%emt 0:00:36]} 33. Qxd5 {[%emt 0:00:30]} exd5 {[%emt 0:00:30]} 34. Bxg7 {[%emt 0:00:30]} Kxg7 {[%emt 0:00:30]} 35. Rxf5 {[%emt 0:00:00]} Rxf5 {[%emt 0:02:17]} 36. Rxf5 {[%emt 0:00:00]} a4 {[%emt 0:00:30]} 37. Rxd5 {[%emt 0:01:30]} a3 {[%emt 0:00:35]} 38. Rb5 {[%emt 0:00:00]} Bc3 {[%emt 0:04:13]} 39. Rxb7+ {[%emt 0:00:00]} Kf6 {[%emt 0:00:15]} 40. Rb6+ {[%emt 0:00:30]} Ke5 {[%emt 0:00:30]} 41. Ra6 {[%emt 0:00:30]} Bb4 {[%emt 0:00:30]} 42. Ra4 {[%emt 0:00:30]} Bc5+ {[%emt 0:00:30]} 43. Kf1 {[%emt 0:00:30]} Kd5 {[%emt 0:00:30]} 44. Ke2 {[%emt 0:00:30]} Kc6 {[%emt 0:00:30]} 45. Kd3 {[%emt 0:00:30]} Kb5 {[%emt 0:00:30]} 46. Ra8 {[%emt 0:00:30]} Bd6 {[%emt 0:00:30]} 47. Kc3 {[%emt 0:00:30]} Kc6 {[%emt 0:00:30]} 48. Ra6+ {[%emt 0:00:30]} Kd5 {[%emt 0:00:30]} 49. Rxd6+ {[%emt 0:00:30]} Kxd6 {[%emt 0:00:30]} 50. Kb3 {[%emt 0:00:30]} Kd5 {[%emt 0:03:08]} 1-0

[Event "10th Cesme Open-A 2024"]
[Site "Cesme"]
[Date "2024.06.29"]
[Round "8"]
[White "Selbes, Tamer Tarik"]
[Black "Bernadskiy, Vitaliy"]
[Result "0-1"]
[ECO "A04"]
[WhiteElo "2183"]
[BlackElo "2563"]
[Annotator "TA"]
[PlyCount "64"]
[EventDate "2024.06.23"]
[EventType "swiss"]
[EventCountry "TUR"]
[SourceTitle "playchess.com"]
[Source "ChessBase"]
[SourceQuality "1"]
[TimeControl "5400+30"]

{[%evp 19,64,0,0,-16,2,-56,-68,-52,-52,-70,-43,-73,-79,-133,-132,-173,-165,-251,-190,-191,-164,-362,-359,-363,-353,-486,-492,-989,-960,-879,-654,-687,-656,-1104,-847,-1384,-983,-1027,-679,-687,-687,-687,-687,-687,-676,-674,-600]} 1. e4 {[%emt 0:01:00]} c5 {[%emt 0:01:00]} 2. Nf3 {[%emt 0:00:00]} e6 {[%emt 0:00:30]} 3. d3 {[%emt 0:00:00]} Nc6 {[%emt 0:00:30]} 4. g3 {[%emt 0:01:30]} g6 {[%emt 0:01:30]} 5. Bg2 {[%emt 0:00:00]} Bg7 {[%emt 0:04:30]} 6. O-O {[%emt 0:00:00]} Nge7 {[%emt 0:00:00]} 7. Re1 {[%emt 0:00:30]} d6 {[%emt 0:02:00]} 8. c3 {[%emt 0:00:30]} e5 {[%emt 0:08:30]} 9. a3 {[%emt 0:00:00]} O-O {[%emt 0:00:30]} 10. b4 {[%emt 0:00:00]} a6 {[%emt 0:00:00]} 11. Bb2 {[%emt 0:01:30]} h6 {[%emt 0:01:00]} 12. d4 {[%emt 0:01:30]} ({White should try} 12. Nbd2 $11) 12... exd4 $1 $15 {[%emt 0:01:30]} 13. cxd4 {[%emt 0:00:00] Black is slightly better.} Bg4 $1 {[%emt 0:00:30]} 14. Nbd2 {[%emt 0:02:00]} (14. bxc5 dxc5 15. Nbd2 Nxd4 $17) 14... Nxd4 {[%emt 0:01:30] Black is more active.} (14... cxd4 $6 15. h3 Bxf3 16. Nxf3 $11) 15. Rb1 {[%emt 0:00:00]} Nec6 {[%emt 0:06:30]} 16. bxc5 {[%emt 0:05:00]} ({White should play} 16. h3 Nxf3+ 17. Nxf3 Bxb2 18. Rxb2) 16... dxc5 $17 {[%emt 0:00:30]} 17. Qc1 {[%emt 0:00:00]} Rc8 {[%emt 0:02:30]} 18. e5 {[%emt 0:03:00]} (18. h3 {was worth a try.} Be6 19. Qxc5) 18... b5 {[%emt 0:09:30]} 19. h3 {[%emt 0:04:30]} (19. Qxc5 $2 Nxe5 20. Qxd4 Nxf3+ 21. Nxf3 Bxd4 $19) 19... Bf5 {[%emt 0:03:30]} 20. Nxd4 {[%emt 0:06:30]} (20. Ne4) 20... cxd4 $19 {[%emt 0:03:30]} ({But not} 20... Nxd4 21. Ne4 $19) 21. Bxc6 {[%emt 0:01:30]} Bxb1 {[%emt 0:00:30]} ({Resist} 21... Qb6 22. Ne4 $19) 22. e6 {[%emt 0:00:30]} fxe6 {[%emt 0:01:30] Black is clearly winning.} 23. Rxe6 {[%emt 0:05:30]} ({Much weaker is} 23. Nxb1 Qd6 24. a4 Qxc6 (24... Rxc6 $2 25. Qd2 $19)) (23. Qxb1 $142 Rxc6 24. Qxg6) 23... Bf5 {[%emt 0:01:30][%csl LRe6,LRh3]} 24. Qe1 {[%emt 0:00:30]} Bxe6 {[%emt 0:00:30]} 25. Qxe6+ {[%emt 0:00:00]} Kh7 {[%emt 0:00:30]} 26. Bb7 {[%emt 0:04:00]} Rc7 {[%emt 0:00:30]} 27. Qxa6 {[%emt 0:01:30]} Rf6 {[%emt 0:00:30]} 28. Qxb5 {[%emt 0:00:30]} Rb6 {[%emt 0:00:30]} 29. Qxb6 {[%emt 0:00:30] [#] Black must now prevent Qb3.} Rc1+ $3 {[%emt 0:00:30][%mdl 512]} 30. Bxc1 {[%emt 0:00:30]} Qxb6 {[%emt 0:00:30]} 31. Be4 {[%emt 0:00:00]} Qc7 {[%emt 0:00:00]} 32. Bb2 {[%emt 0:00:00] [#]} d3 $1 {[%emt 0:00:00] Black took control after the opening.   Weighted Error Value: White=1.15/Black=0.85.  Mistake:       	White=5     	---        Inaccurate:     	White=3     	---        OK:         	White=3     	Black=7      Best:        	---       	Black=1      Strong:       	---       	Black=2} 0-1

[Event "10th Cesme Open-A 2024"]
[Site "Cesme"]
[Date "2024.06.29"]
[Round "8"]
[White "Altun, Arda"]
[Black "Portakalci, Yusuf"]
[Result "1-0"]
[ECO "A11"]
[WhiteElo "2149"]
[BlackElo "2034"]
[Annotator "RC"]
[PlyCount "115"]
[EventDate "2024.06.23"]
[EventType "swiss"]
[EventCountry "TUR"]
[SourceTitle "playchess.com"]
[Source "ChessBase"]
[SourceQuality "1"]
[TimeControl "5400+30"]

1. Nf3 {[%emt 0:02:00]} d5 {[%emt 0:01:00]} 2. g3 {[%emt 0:00:30]} Nf6 {[%emt 0:01:30]} 3. Bg2 {[%emt 0:00:30]} Bf5 {[%emt 0:04:30]} 4. c4 {[%emt 0:01:30]} c6 {[%emt 0:01:30]} 5. Qb3 {[%emt 0:02:30]} Qb6 {[%emt 0:03:30]} 6. Nc3 {[%emt 0:01:30]} e6 {[%emt 0:00:30]} 7. d4 {[%emt 0:08:30]} Nbd7 {[%emt 0:02:30]} 8. c5 {[%emt 0:00:30]} Qxb3 {[%emt 0:00:30]} 9. axb3 {[%emt 0:00:30]} a6 {[%emt 0:05:30]} 10. b4 {[%emt 0:00:00]} Rc8 {[%emt 0:00:30]} 11. h3 {[%emt 0:05:00]} h6 {[%emt 0:01:30]} 12. g4 {[%emt 0:00:30]} Bh7 {[%emt 0:00:30]} 13. Bf4 {[%emt 0:00:30]} Be7 {[%emt 0:02:30]} 14. Nd2 {[%emt 0:06:30]} Bd8 {[%emt 0:02:30]} 15. Nb3 {[%emt 0:07:30]} O-O {[%emt 0:09:30]} 16. Na5 {[%emt 0:21:30]} Bxa5 {[%emt 0:17:30]} 17. Rxa5 {[%emt 0:09:30]} Rfe8 {[%emt 0:01:30]} 18. Be3 {[%emt 0:00:30]} e5 {[%emt 0:01:30]} 19. O-O {[%emt 0:00:30]} exd4 {[%emt 0:08:30]} 20. Bxd4 {[%emt 0:00:30]} Be4 {[%emt 0:00:30]} 21. f3 {[%emt 0:00:30]} Bg6 {[%emt 0:00:30]} 22. Ra2 {[%emt 0:00:30]} Nf8 {[%emt 0:03:30]} 23. e4 {[%emt 0:14:23]} dxe4 {[%emt 0:01:30]} 24. f4 {[%emt 0:01:57]} Nd5 {[%emt 0:07:30]} 25. f5 {[%emt 0:00:30]} Nxc3 {[%emt 0:00:30]} 26. bxc3 {[%emt 0:00:21]} Bh7 {[%emt 0:00:30]} 27. Re2 {[%emt 0:00:22]} Nd7 {[%emt 0:00:30]} 28. Rfe1 {[%emt 0:02:03]} Kf8 {[%emt 0:00:30]} 29. Rxe4 {[%emt 0:00:20]} f6 {[%emt 0:01:30]} 30. Kf2 {[%emt 0:05:15]} Bg8 {[%emt 0:00:30]} 31. Rxe8+ {[%emt 0:00:30]} Rxe8 {[%emt 0:00:30]} 32. Rxe8+ {[%emt 0:00:30]} Kxe8 {[%emt 0:00:30]} 33. Ke3 {[%emt 0:00:30]} Bc4 {[%emt 0:00:30]} 34. Kf4 {[%emt 0:00:30]} Ke7 {[%emt 0:00:30]} 35. h4 {[%emt 0:00:30]} Kf7 {[%emt 0:00:30]} 36. Bf3 {[%emt 0:00:30]} Nf8 {[%emt 0:02:24]} 37. Bd1 {[%emt 0:01:51]} Nd7 {[%emt 0:01:32]} 38. g5 {[%emt 0:02:51]} hxg5+ {[%emt 0:05:18]} 39. hxg5 {[%emt 0:00:03]} fxg5+ {[%emt 0:02:22]} 40. Kxg5 {[%emt 0:00:30]} Nf6 {[%emt 0:00:00]} 41. Bf3 {[%emt 0:01:05]} Bd3 {[%emt 0:01:42]} 42. Kf4 {[%emt 0:00:24]} Ke7 {[%emt 0:00:30]} 43. Bd1 {[%emt 0:01:06]} Nd5+ {[%emt 0:02:53]} 44. Kg5 {[%emt 0:00:30]} Kf7 {[%emt 0:00:19]} 45. Bh5+ {[%emt 0:00:41]} Kf8 {[%emt 0:00:56]} 46. Bg6 {[%emt 0:00:07]} Kg8 {[%emt 0:02:15]} 47. Be8 {[%emt 0:00:26]} Kf8 {[%emt 0:03:32]} 48. Bd7 {[%emt 0:00:05]} Ne7 {[%emt 0:00:57]} 49. Be5 {[%emt 0:00:29]} Kf7 {[%emt 0:02:16]} 50. Be6+ {[%emt 0:00:30]} Kf8 {[%emt 0:00:00]} 51. Bd6 {[%emt 0:00:23]} Ke8 {[%emt 0:00:00]} 52. Bxe7 {[%emt 0:00:40]} Kxe7 {[%emt 0:00:20]} 53. Kg6 {[%emt 0:00:00]} Kf8 {[%emt 0:00:13]} 54. Bc8 {[%emt 0:00:00]} a5 {[%emt 0:01:33]} 55. bxa5 {[%emt 0:00:28]} Ba6 {[%emt 0:00:35]} 56. c4 {[%emt 0:00:10]} Kg8 {[%emt 0:00:32]} 57. Be6+ {[%emt 0:00:08]} Kh8 {[%emt 0:00:14]} 58. Bf7 {[%emt 0:00:21]} 1-0

[Event "10th Cesme Open-A 2024"]
[Site "Cesme"]
[Date "2024.06.29"]
[Round "8"]
[White "Ozkan, Ervin"]
[Black "Pereverzev, Timofei"]
[Result "1/2-1/2"]
[ECO "E61"]
[WhiteElo "2147"]
[BlackElo "2019"]
[Annotator "RC"]
[PlyCount "60"]
[EventDate "2024.06.23"]
[EventType "swiss"]
[EventCountry "TUR"]
[SourceTitle "playchess.com"]
[Source "ChessBase"]
[SourceQuality "1"]
[TimeControl "5400+30"]

1. d4 {[%emt 0:01:00]} Nf6 {[%emt 0:01:00]} 2. Nf3 {[%emt 0:00:30]} g6 {[%emt 0:00:00]} 3. c4 {[%emt 0:00:30]} Bg7 {[%emt 0:00:00]} 4. Nc3 {[%emt 0:00:30]} O-O {[%emt 0:00:30]} 5. Bg5 {[%emt 0:00:00]} h6 {[%emt 0:04:30]} 6. Bh4 {[%emt 0:00:00]} d6 {[%emt 0:00:30]} 7. e3 {[%emt 0:00:30]} Nbd7 {[%emt 0:00:30]} 8. Be2 {[%emt 0:01:30]} c6 {[%emt 0:05:30]} 9. Qc2 {[%emt 0:01:30]} Qc7 {[%emt 1:07:10]} 10. O-O {[%emt 0:58:30]} e5 {[%emt 0:00:30]} 11. Rfd1 {[%emt 0:00:30]} a5 {[%emt 0:00:30]} 12. h3 {[%emt 0:00:30]} b6 {[%emt 0:00:30]} 13. dxe5 {[%emt 0:00:30]} dxe5 {[%emt 0:00:30]} 14. Bg3 {[%emt 0:00:30]} Re8 {[%emt 0:00:30]} 15. a3 {[%emt 0:00:30]} Nc5 {[%emt 0:00:30]} 16. b4 {[%emt 0:00:30]} Bf5 {[%emt 0:00:30]} 17. Qb2 {[%emt 0:00:30]} Nce4 {[%emt 0:00:30]} 18. Nxe4 {[%emt 0:00:30]} Nxe4 {[%emt 0:00:30]} 19. Bh2 {[%emt 0:00:30]} a4 {[%emt 0:00:30]} 20. Nd4 {[%emt 0:00:30]} Nxf2 {[%emt 0:00:30]} 21. Rf1 {[%emt 0:00:30]} Nxh3+ {[%emt 0:00:30]} 22. gxh3 {[%emt 0:00:30]} Bxh3 {[%emt 0:00:30]} 23. Rf2 {[%emt 0:00:30]} Qe7 {[%emt 0:00:30]} 24. Nxc6 {[%emt 0:00:30]} Qg5+ {[%emt 0:00:30]} 25. Kh1 {[%emt 0:00:30]} e4 {[%emt 0:00:30]} 26. Qc1 {[%emt 0:01:30]} Qh4 {[%emt 0:09:15]} 27. Rf4 {[%emt 0:00:30]} Qg5 {[%emt 0:00:30]} 28. Rf2 {[%emt 0:00:30]} Qh4 {[%emt 0:00:30]} 29. Rf4 {[%emt 0:00:30]} Qg5 {[%emt 0:00:30]} 30. Rf2 {[%emt 0:00:30]} Qh4 {[%emt 0:00:30]} 1/2-1/2

[Event "10th Cesme Open-A 2024"]
[Site "Cesme"]
[Date "2024.06.29"]
[Round "8"]
[White "Ozkan, Ervin"]
[Black "Pereverzev, Timofei"]
[Result "*"]
[ECO "E61"]
[WhiteElo "2147"]
[BlackElo "2019"]
[Annotator "RC"]
[PlyCount "37"]
[EventDate "2024.06.23"]
[EventType "swiss"]
[EventCountry "TUR"]
[SourceTitle "playchess.com"]
[Source "ChessBase"]
[SourceQuality "1"]
[TimeControl "5400+30"]

1. d4 {[%emt 0:01:00]} Nf6 {[%emt 0:01:00]} 2. Nf3 {[%emt 0:00:30]} g6 {[%emt 0:00:00]} 3. c4 {[%emt 0:00:30]} Bg7 {[%emt 0:00:00]} 4. Nc3 {[%emt 0:00:30]} O-O {[%emt 0:00:30]} 5. Bg5 {[%emt 0:00:00]} h6 {[%emt 0:04:30]} 6. Bh4 {[%emt 0:00:00]} d6 {[%emt 0:00:30]} 7. e3 {[%emt 0:00:30]} Nbd7 {[%emt 0:00:30]} 8. Be2 {[%emt 0:01:30]} c6 {[%emt 0:05:30]} 9. Qc2 {[%emt 0:01:30]} Qc7 {[%emt 0:08:30]} 10. Rd1 {[%emt 0:06:30]} a5 {[%emt 0:00:30]} 11. O-O {[%emt 0:00:30]} e5 {[%emt 0:00:30]} 12. h3 {[%emt 0:05:30]} b6 {[%emt 0:02:30]} 13. dxe5 {[%emt 0:06:30]} dxe5 {[%emt 0:00:30]} 14. Bg3 {[%emt 0:02:30]} Re8 {[%emt 0:12:30]} 15. a3 {[%emt 0:14:30]} Nc5 {[%emt 0:04:30]} 16. b4 {[%emt 0:00:30]} Bf5 {[%emt 0:00:30]} 17. Qb2 {[%emt 0:01:30]} Nce4 {[%emt 0:04:30]} 18. Nxe4 {[%emt 0:00:30]} Nxe4 {[%emt 0:00:30]} 19. Bh2 {[%emt 0:00:30]} *